bitfinex/quotes_ETHUSD_20220113
["timestamp","ask_amount","ask_price","bid_price","bid_amount"]
[1642095484005,0.3535,3283.5,3283.3,473.93067426]
[1642095484006,29.7583,3283.4,3283.3,473.93067426]
[1642095484202,33.2583,3283.4,3283.3,467.78369788]
[1642095484402,33.2583,3283.4,3283.3,467.79108739]
[1642095484645,34.7828,3283.4,3283.3,467.79108739]
[1642095484941,34.7828,3283.4,3283.3,463.12443838]
[1642095485340,34.7828,3283.4,3283.3,455.65671838]
[1642095485540,34.661,3283.4,3283.3,455.65671838]
[1642095485742,34.661,3283.4,3283.3,449.56173838]
[1642095486340,38.29177839,3283.4,3283.3,443.46701838]
[1642095486941,38.29177839,3283.4,3283.3,437.37246838]
[1642095487542,38.29177839,3283.4,3283.3,431.27724838]
[1642095487748,35.94042738,3283.4,3283.3,431.27724838]
[1642095488146,35.94042738,3283.4,3283.3,425.18156838]
[1642095488594,38.32741102,3283.4,3283.3,419.08525838]
[1642095488994,38.32741102,3283.4,3283.3,412.98883838]
[1642095489396,16.55741102,3283.4,3283.3,413.0017455]
[1642095489596,10.16542738,3283.4,3283.3,413.0017455]
[1642095489996,10.16542738,3283.4,3283.3,416.77269914]
[1642095491002,8.886,3283.4,3283.3,416.77269914]
[1642095491197,8.886,3283.4,3283.3,416.75979202]
[1642095491897,8.522,3283.4,3283.3,416.75979202]
[1642095493047,26.606,3283.4,3283.3,410.66547202]
[1642095493640,26.606,3283.4,3283.3,404.57094202]
[1642095493641,26.556,3283.4,3283.3,404.57094202]
[1642095494142,27.83542738,3283.4,3283.3,389.11722202]
[1642095494342,27.95722738,3283.4,3283.3,389.11722202]
[1642095494542,27.95722738,3283.4,3283.3,383.02098202]
[1642095494745,27.95722738,3283.4,3283.3,381.59166103]
[1642095494746,31.4698771,3283.4,3283.3,381.59166103]
[1642095494945,36.7264771,3283.4,3283.3,372.77315103]
[1642095495144,43.68844061,3283.4,3283.3,366.67691103]
[1642095495345,43.68844061,3283.4,3283.3,359.6933582]
[1642095495549,43.68844061,3283.4,3283.3,353.5969582]
[1642095495994,43.68844061,3283.4,3283.3,352.8348482]
[1642095496194,38.59181624,3283.4,3283.3,340.6408782]
[1642095496594,38.59181624,3283.4,3283.3,322.73091173]
[1642095496795,38.59181624,3283.4,3283.3,316.15670853]
[1642095496796,97.89959606,3283.4,3283.3,316.15670853]
[1642095496996,116.58218906,3283.4,3283.3,281.90312052]
[1642095497295,151.08279557,3283.4,3283.3,174.34521012]
[1642095497497,140.86758642,3283.4,3283.3,168.3361896]
[1642095497698,117.07640863,3283.4,3283.3,143.9435012]
[1642095497897,145.32008914,3283.4,3283.3,143.9435012]
[1642095498101,152.48581714,3283.4,3283.3,135.53041697]
[1642095498301,133.47724321,3283.4,3283.3,74.06530403]
[1642095498499,173.86253172,3283.4,3283.3,34.63604653]
[1642095498699,173.86253172,3283.4,3281.4,9.3478]
[1642095498700,0.9084,3283.2,3281.4,3.2473]
[1642095499000,10.1,3283.3,3280.7,11.3257]
[1642095499001,23.1834,3281.5,3280.7,11.3257]
[1642095499300,23.1834,3281.5,3280.8,0.01421059]
[1642095499301,0.9084,3281.1,3280.8,0.01421059]
[1642095499554,0.9084,3280.9,3280.8,0.01421059]
[1642095499747,7.2615,3280.9,3280.8,8.76421059]
[1642095499946,7.2615,3280.9,3280.8,3.91727784]
[1642095500146,24.9815,3280.9,3280.8,3.91727784]
[1642095500948,7.2615,3280.9,3280.8,3.91727784]
[1642095501158,7.2615,3280.9,3280.8,4.46109053]
[1642095501159,8.56223914,3280.9,3280.8,4.46109053]
[1642095501454,12.06223914,3280.9,3280.8,11.45558343]
[1642095501651,12.06223914,3280.9,3280.8,15.22738343]
[1642095502348,12.06223914,3280.9,3280.8,11.57738343]
[1642095502549,8.56223914,3280.9,3280.8,11.57738343]
[1642095502748,8.56223914,3280.9,3280.8,11.45558343]
[1642095503394,8.56223914,3280.9,3280.8,11.44349053]
[1642095503893,8.37063914,3280.9,3280.8,11.56529053]
[1642095504691,8.37063914,3280.9,3280.8,15.61529053]
[1642095504892,8.37063914,3280.9,3280.8,11.56529053]
[1642095505493,8.37063914,3280.9,3280.8,11.51529053]
[1642095505694,26.45463914,3280.9,3280.8,1.00458]
[1642095505894,26.45463914,3280.9,3280.7,11.3257]
[1642095506097,29.47976394,3280.9,3280.7,11.3257]
[1642095506293,29.47976394,3280.9,3280.7,5.22503]
[1642095506893,0.9084,3280.7,3279.6,1.55469318]
[1642095507144,0.9084,3280.1,3279.6,1.55469318]
[1642095507342,0.9084,3279.9,3279.6,0.00116218]
[1642095507543,0.9084,3279.7,3279.6,0.00116218]
[1642095507743,1.2724,3279.7,3279.6,0.00116218]
[1642095507943,1.2724,3279.7,3279.6,0.43715419]
[1642095508541,1.2724,3279.7,3279.6,10.73715419]
[1642095508744,1.2724,3279.7,3279.6,10.73599201]
[1642095508941,0.9084,3279.7,3279.6,12.04379084]
[1642095509542,0.9084,3279.7,3279.6,11.60779883]
[1642095510544,0.9084,3279.7,3279.6,12.17683716]
[1642095512795,18.6284,3279.7,3279.6,12.17683716]
[1642095512996,18.7502,3279.7,3279.6,11.60779883]
[1642095513194,1.12653,3279.8,3279.6,11.60779883]
[1642095513401,1.52677527,3280.0,3279.6,11.72949883]
[1642095513402,0.00170527,3280.0,3279.6,11.72949883]
[1642095513595,0.9084,3279.9,3279.7,0.1554]
[1642095513897,0.90953684,3279.9,3279.7,0.1554]
[1642095514096,0.00113684,3279.9,3279.8,0.45155902]
[1642095515143,0.00113684,3279.9,3279.7,0.1554]
[1642095515144,20.15462684,3279.9,3279.7,0.1554]
[1642095515442,2.43462684,3279.9,3279.7,0.1554]
[1642095515843,0.90953684,3279.9,3279.7,0.1054]
[1642095516043,0.90953684,3279.9,3279.8,10.86029886]
[1642095517442,0.90953684,3279.9,3279.8,10.76732627]
[1642095518895,0.90953684,3279.9,3279.8,10.36732627]
[1642095519100,0.00113684,3279.9,3279.8,10.36732627]
[1642095519797,0.85953684,3280.0,3279.8,10.36732627]
[1642095520999,3.684e-05,3280.0,3279.8,11.12966627]
[1642095521199,3.684e-05,3280.0,3279.9,21.1621]
[1642095521404,0.9084,3280.8,3280.0,10.3]
[1642095521603,5.5469,3280.9,3280.0,10.3]
[1642095521604,0.5084,3280.5,3280.4,2.04005076]
[1642095521801,1.6295,3280.9,3280.5,10.3]
[1642095522056,0.3243,3280.9,3280.7,0.76209]
[1642095522245,0.00180527,3280.9,3280.7,10.46209]
[1642095522447,1.47458297,3281.2,3280.8,7.45]
[1642095522847,0.00170528,3281.1,3280.8,8.21207]
[1642095523047,0.1218,3281.8,3280.9,10.87978017]
[1642095523246,1.52414,3281.9,3281.7,0.46311605]
[1642095523446,0.762,3281.8,3281.7,0.46311605]
[1642095523645,0.762,3281.8,3281.7,1.92128479]
[1642095524349,0.762,3281.8,3281.7,6.32128479]
[1642095525792,0.762,3281.8,3281.7,2.67454353]
[1642095526194,0.76192,3282.1,3281.7,2.67454353]
[1642095526594,0.00454738,3281.9,3281.8,12.05936718]
[1642095526997,0.00454738,3281.9,3281.8,12.18116718]
[1642095527194,0.00454738,3281.9,3281.8,12.94308718]
[1642095528295,0.00454738,3281.9,3281.8,15.49308718]
[1642095528895,0.1218,3283.1,3281.9,10.3]
[1642095529096,1.52357,3283.0,3282.9,0.52679095]
[1642095529295,1.52982266,3283.0,3282.9,1.18828403]
[1642095529579,0.09795791,3282.9,3282.4,5.18219966]
[1642095529760,0.76176,3282.7,3282.4,4.6743]
[1642095529961,0.09134063,3282.6,3282.4,4.6743]
[1642095530262,1.52720054,3282.5,3282.4,4.6743]
[1642095530662,1.52720054,3282.5,3282.4,1.11464473]
[1642095530862,1.52720054,3282.5,3282.4,1.59135907]
[1642095530863,0.00341054,3282.5,3282.4,1.59135907]
[1642095531261,0.00341054,3282.5,3282.4,5.64135907]
[1642095532263,0.00341054,3282.5,3282.4,8.99135907]
[1642095534400,0.00341054,3282.5,3282.4,11.54135907]
[1642095534604,0.1218,3283.1,3282.5,7.25]
[1642095534797,0.1218,3283.1,3282.7,1.5232714]
[1642095534997,0.76450212,3283.0,3282.9,5.95518694]
[1642095536602,0.00284212,3283.0,3282.9,5.95518694]
[1642095537347,0.00284212,3283.0,3282.9,16.53058694]
[1642095537548,4.212e-05,3283.0,3282.9,16.53058694]
[1642095538446,4.212e-05,3283.0,3282.9,16.56371844]
[1642095539047,4.212e-05,3283.0,3282.9,14.5754]
[1642095539347,4.212e-05,3283.0,3282.9,14.6972]
[1642095539547,4.212e-05,3283.0,3282.9,14.73470347]
[1642095540993,4.212e-05,3283.0,3282.9,14.6972]
[1642095541797,4.212e-05,3283.0,3282.9,14.7360091]
[1642095541997,4.212e-05,3283.0,3282.9,15.11256999]
[1642095542196,2.11628473,3284.0,3283.7,0.76122]
[1642095542400,2.11628473,3284.0,3283.8,1.3098243]
[1642095542597,0.00511581,3283.9,3283.8,0.5486143]
[1642095542796,1.47233062,3284.5,3283.9,10.3]
[1642095542997,1.47233062,3284.5,3284.1,0.761238]
[1642095543199,0.00284212,3284.4,3284.1,0.761238]
[1642095543598,0.0022737,3284.3,3284.1,0.761238]
[1642095543798,2.56652841,3285.2,3284.1,0.761238]
[1642095543999,6.2,3286.3,3284.6,0.7610489]
[1642095544000,0.77355903,3285.4,3284.6,0.7610489]
[1642095544198,0.00284211,3284.8,3284.7,10.4216]
[1642095544398,0.77355903,3285.4,3284.8,10.05]
[1642095544649,0.1217,3285.8,3285.4,0.49896733]
[1642095544848,0.1217,3285.8,3285.4,1.55814352]
[1642095545050,0.00397897,3285.5,3285.4,1.55814352]
[1642095545247,0.09157142,3285.4,3284.5,0.1216]
[1642095545450,0.1217,3285.3,3284.4,5.2556]
[1642095545647,0.00284212,3285.3,3284.6,0.00113685]
[1642095545848,0.1239737,3285.2,3284.5,0.00170527]
[1642095546049,0.1239737,3285.2,3284.5,4.33380527]
[1642095546248,0.00170527,3285.1,3284.5,4.33380527]
[1642095546450,0.05987282,3284.9,3284.6,0.00113684]
[1642095546650,0.1217,3284.8,3284.6,0.00113684]
[1642095546850,0.1217,3284.8,3284.5,4.3321]
[1642095546851,6.0526198,3284.8,3284.5,4.3321]
[1642095547049,23.7726198,3284.8,3284.5,4.3321]
[1642095547250,18.2802562,3284.8,3284.5,4.3321]
[1642095547449,18.2802562,3284.8,3284.3,6.1165]
[1642095547450,3.55,3284.6,3284.3,6.1165]
[1642095547652,5.06739079,3284.5,3284.0,0.1217]
[1642095547848,0.1217,3284.5,3284.4,0.00113685]
[1642095548052,0.1217,3284.6,3284.4,0.00113685]
[1642095548343,0.1217,3284.6,3284.0,0.1217]
[1642095548521,0.1217,3284.6,3284.1,0.00170527]
[1642095548917,0.76155,3284.5,3284.1,0.00170527]
[1642095549119,0.07883555,3284.3,3284.0,1.28926446]
[1642095549318,0.1217,3284.2,3284.0,1.28926446]
[1642095549520,0.12340527,3284.4,3284.0,1.28926446]
[1642095549920,0.00113685,3284.3,3284.0,1.28926446]
[1642095550118,0.1217,3284.2,3284.0,1.28926446]
[1642095550326,0.88316,3284.2,3284.0,1.28926446]
[1642095550920,0.88316,3284.2,3284.0,1.86465339]
[1642095551118,0.1217,3284.2,3284.0,1.86465339]
[1642095551321,0.00113685,3284.3,3284.0,1.86465339]
[1642095552145,0.09795791,3284.2,3284.0,1.86465339]
[1642095552348,0.00113685,3284.3,3284.0,1.86465339]
[1642095552549,0.00113685,3284.3,3284.0,1.28926446]
[1642095552851,2.20667738,3284.1,3284.0,1.28926446]
[1642095553048,2.20667738,3284.1,3284.0,4.13926446]
[1642095553249,2.32847738,3284.1,3284.0,1.28926446]
[1642095553447,0.09795791,3284.0,3283.6,3.756]
[1642095553646,3.85154738,3284.1,3283.5,0.1217]
[1642095553647,0.1218,3283.9,3283.5,0.1217]
[1642095553847,0.1218,3284.0,3283.7,0.00227369]
[1642095554047,0.88331,3284.0,3283.7,0.00227369]
[1642095554448,0.88331,3284.0,3283.8,1.18051053]
[1642095554849,0.88331,3284.0,3283.9,3.25113685]
[1642095555452,0.1218,3284.0,3283.9,3.25113685]
[1642095555648,0.00113685,3284.3,3283.9,3.25113685]
[1642095555893,0.00113685,3284.3,3284.0,0.76131]
[1642095556095,0.09795791,3284.2,3284.0,0.76131]
[1642095556297,0.00113685,3284.3,3284.0,0.76131]
[1642095556496,0.00113685,3284.3,3283.9,3.25113685]
[1642095556695,0.09795791,3284.2,3283.9,4.77368075]
[1642095556895,0.00113685,3284.3,3283.9,4.77368075]
[1642095557096,0.05875874,3284.2,3283.9,4.77368075]
[1642095557496,0.05875874,3284.2,3283.9,3.25113685]
[1642095557497,0.76143,3284.2,3283.9,3.25113685]
[1642095557695,2.23278408,3284.1,3283.9,3.25113685]
[1642095557897,1.5231,3284.0,3283.9,3.25113685]
[1642095558596,1.5231,3284.0,3283.9,0.00113685]
[1642095558995,1.5231,3284.0,3283.4,0.7615205]
[1642095558996,1.5231,3284.0,3283.5,0.00341054]
[1642095559195,1.6449,3284.0,3283.6,1.15474363]
[1642095559397,0.05146278,3283.9,3283.6,1.15474363]
[1642095559647,0.76151,3283.8,3283.6,1.15474363]
[1642095559946,2.22631777,3283.7,3283.6,9.60474363]
[1642095560344,2.22631777,3283.7,3283.6,0.00284212]
[1642095560546,7.15842136,3283.7,3283.1,6.0339]
[1642095560747,7.15842136,3283.7,3283.4,0.00113685]
[1642095560748,0.58341888,3283.6,3283.4,0.00113685]
[1642095560944,0.4858,3283.6,3283.4,0.00113685]
[1642095561545,0.4858,3283.6,3283.1,1.17844159]
[1642095561546,0.76168,3283.4,3283.1,1.17844159]
[1642095561943,0.1218,3283.3,3283.2,7.45227369]
[1642095562245,0.76168,3283.4,3283.3,3.95]
[1642095562644,0.76168,3283.4,3283.3,3.95170527]
[1642095563045,0.76168,3283.4,3283.3,6.85170527]
[1642095563493,0.1218,3283.6,3283.3,3.95170527]
[1642095564294,0.76168,3283.4,3283.3,0.00170527]
[1642095564694,0.76168,3283.4,3283.1,1.17844159]
[1642095565295,0.09237379,3283.3,3283.1,1.17844159]
[1642095565599,2.98168383,3283.4,3282.7,0.1218]
[1642095565798,4.80656981,3283.3,3282.3,8.2291714]
[1642095565997,0.76175,3282.9,3282.8,4.95284212]
[1642095568446,0.76175,3282.9,3282.8,0.00284212]
[1642095568646,5.81647302,3282.9,3282.8,0.00284212]
[1642095568847,17.72,3282.7,3282.0,0.1218]
[1642095569044,0.09795791,3282.8,3281.3,3.7786]
[1642095569045,19.24245473,3282.5,3281.3,3.7786]
[1642095569244,19.24245473,3282.5,3282.1,0.00227369]
[1642095569245,17.71829473,3282.3,3282.1,0.00227369]
[1642095569444,0.4858,3282.2,3281.0,3.9524]
[1642095569644,2.28633,3282.1,3281.9,1.31848058]
[1642095569844,0.05200183,3281.9,3281.4,0.00397896]
[1642095570045,0.76211,3281.6,3281.4,0.00397896]
[1642095570245,0.364,3281.5,3281.4,0.00397896]
[1642095570645,0.364,3281.5,3280.8,0.00738951]
[1642095570897,0.364,3281.5,3281.3,1.11052226]
[1642095571695,0.314,3281.5,3281.3,1.11052226]
[1642095572395,0.76217,3281.4,3281.3,1.11052226]
[1642095572795,0.76217,3281.4,3281.3,1.11506965]
[1642095574846,0.76217,3281.4,3281.3,4.36506965]
[1642095575247,0.76217,3281.4,3281.3,1.11506965]
[1642095575850,0.76217,3281.4,3281.3,5.41506965]
[1642095576650,2.2278281,3281.6,3281.3,5.41506965]
[1642095576949,1.4658381,3281.6,3281.3,5.41506965]
[1642095577148,0.09795791,3281.5,3281.3,5.41506965]
[1642095577351,1.4658381,3281.9,3281.3,5.41506965]
[1642095577551,1.4658381,3281.9,3281.7,0.53303143]
[1642095577751,1.4658381,3281.9,3281.7,1.21874303]
[1642095577953,1.4658381,3281.9,3281.8,7.90170527]
[1642095578395,2.22000383,3282.2,3281.8,7.90170527]
[1642095578396,0.76189,3282.0,3281.8,7.90170527]
[1642095578595,0.76189,3282.0,3281.9,7.86330621]
[1642095578800,0.76189,3282.0,3281.9,7.86444306]
[1642095581306,0.88369,3282.0,3281.9,7.86444306]
[1642095581500,0.76189,3282.0,3281.9,7.86444306]
[1642095581699,1.4658381,3282.1,3281.9,7.86444306]
[1642095581902,1.4658381,3282.0,3281.9,8.55004376]
[1642095582145,1.4658381,3282.0,3281.9,7.86444306]
[1642095583546,0.76184,3282.2,3281.9,7.86444306]
[1642095583950,0.06778852,3282.1,3281.9,7.86444306]
[1642095584147,0.76184,3282.2,3281.9,7.86444306]
[1642095585048,2.22159426,3282.0,3281.9,7.86444306]
[1642095586898,1.4658381,3282.0,3281.9,7.86444306]
[1642095587397,1.4658381,3282.0,3281.9,1.26444306]
[1642095587600,1.4658381,3282.0,3281.9,0.00113685]
[1642095587803,1.5876381,3282.0,3281.9,0.00113685]
[1642095588001,0.76213,3281.6,3281.1,0.1218]
[1642095588201,0.76213,3281.6,3281.2,0.00397896]
[1642095588398,0.1218,3281.5,3281.2,0.00397896]
[1642095588599,2.40819,3281.9,3281.2,0.00397896]
[1642095589300,0.1218,3281.9,3281.3,0.56174272]
[1642095589557,1.4658381,3282.0,3281.3,0.56174272]
[1642095589751,1.4658381,3282.0,3281.5,0.7619]
[1642095589951,1.91753236,3282.1,3281.5,11.0619]
[1642095590152,1.91753236,3281.8,3281.7,0.533317]
[1642095590653,1.91753236,3281.8,3281.7,7.33445384]
[1642095591055,1.91753236,3281.8,3281.7,7.37234191]
[1642095591254,1.91753236,3281.8,3281.7,8.09634384]
[1642095591855,0.76192,3281.9,3281.7,8.09634384]
[1642095592254,0.76192,3281.9,3281.8,8.46689157]
[1642095593057,0.76192,3281.9,3281.8,0.46689157]
[1642095593709,0.76192,3281.9,3281.8,5.51689157]
[1642095593909,0.76186,3282.1,3281.8,5.51689157]
[1642095594109,2.91984411,3282.4,3281.9,0.79795003]
[1642095594312,2.91984411,3282.4,3282.3,6.85923807]
[1642095594708,2.92268623,3282.4,3282.3,10.25923807]
[1642095594910,0.00284212,3282.4,3282.3,8.0730014]
[1642095595511,0.00284212,3282.4,3282.3,8.22868591]
[1642095595711,0.00284212,3282.4,3282.3,12.17868591]
[1642095597247,4.212e-05,3282.4,3282.3,12.17868591]
[1642095597448,4.212e-05,3282.4,3282.3,11.68158389]
[1642095597648,4.212e-05,3282.4,3282.3,10.46782056]
[1642095597850,3.75045366,3283.3,3282.4,10.3]
[1642095598049,3.75045366,3283.3,3283.0,0.5330366]
[1642095598250,3.75045366,3283.3,3283.0,1.32966129]
[1642095598251,0.00454739,3283.2,3283.0,1.32966129]
[1642095598449,0.00454739,3283.2,3283.1,0.03882171]
[1642095598648,3.75045366,3283.3,3283.1,0.03882171]
[1642095598849,3.75045366,3283.3,3283.2,10.85802624]
[1642095599249,3.75556947,3283.3,3283.2,10.85802624]
[1642095599555,0.00511581,3283.3,3283.2,10.85802624]
[1642095599749,0.07691581,3283.7,3283.3,3.45]
[1642095599949,0.1218,3283.8,3283.4,0.76145]
[1642095600150,0.00170527,3283.6,3283.4,0.76145]
[1642095600550,0.1218,3284.0,3283.4,0.76145]
[1642095600551,0.00113685,3283.5,3283.4,0.76145]
[1642095601403,3.685e-05,3283.5,3283.4,1.52287]
[1642095601604,3.685e-05,3283.5,3283.4,12.7198262]
[1642095601802,3.685e-05,3283.5,3283.4,12.8416262]
[1642095605449,3.685e-05,3283.5,3283.4,13.37527175]
[1642095605750,0.1218,3284.8,3284.0,0.76119]
[1642095605950,0.1218,3284.8,3284.3,0.3805865]
[1642095606151,0.1217,3284.9,3284.3,0.3805865]
[1642095606350,0.1217,3285.4,3284.5,3.0]
[1642095606550,0.00795793,3284.9,3284.8,8.02760886]
[1642095606750,0.00795793,3284.9,3284.8,7.5]
[1642095607152,3.70841159,3285.0,3284.9,3.55]
[1642095607750,0.1217,3285.4,3284.9,4.06756436]
[1642095608152,0.00227369,3285.3,3285.1,0.76108]
[1642095608399,0.1217,3285.2,3285.1,0.76108]
[1642095608599,0.12340527,3285.2,3285.1,7.06910881]
[1642095608799,0.00170527,3285.2,3285.1,6.30802881]
[1642095609000,0.00170527,3285.2,3285.1,2.11984842]
[1642095609200,0.12340527,3285.2,3284.9,1.27870436]
[1642095609500,0.12340527,3285.2,3281.2,15.33804]
[1642095609501,0.07416507,3285.1,3284.1,5.5251]
[1642095609706,0.07108985,3284.9,3284.6,1.16023937]
[1642095609900,0.1217,3284.8,3284.6,1.16194464]
[1642095610103,0.00113684,3285.1,3284.7,0.00113685]
[1642095610104,0.1217,3285.0,3284.7,0.00113685]
[1642095610502,0.1217,3285.0,3284.6,0.00170527]
[1642095610701,0.09795791,3284.9,3284.6,0.00170527]
[1642095610902,0.76144,3284.7,3284.6,0.00170527]
[1642095611101,0.88314,3284.7,3284.6,1.5396416]
[1642095611701,3.40615155,3284.7,3284.6,1.5396416]
[1642095612356,3.40615155,3284.7,3284.6,4.3396416]
[1642095612760,5.60541984,3284.7,3284.6,4.3396416]
[1642095612955,5.48371984,3284.7,3284.6,4.3396416]
[1642095613356,5.48371984,3284.7,3284.6,7.4896416]
[1642095613556,1.984e-05,3284.7,3284.6,11.8741566]
[1642095614558,1.984e-05,3285.0,3284.7,1.52232]
[1642095614858,1.984e-05,3285.0,3284.6,11.8741566]
[1642095614859,0.09795791,3284.9,3284.6,1.5396416]
[1642095615057,0.09795791,3284.9,3284.6,0.00170527]
[1642095615259,4.1717,3284.8,3284.7,0.00113685]
[1642095615457,4.1717,3284.8,3284.5,3.0]
[1642095615458,23.75454,3284.7,3284.5,3.0]
[1642095615656,1.52319,3284.1,3283.2,3.9009]
[1642095615901,1.52319,3284.1,3283.1,1.57110821]
[1642095615902,0.0621638,3283.9,3283.1,1.57110821]
[1642095616103,0.1218,3284.0,3283.3,0.00795793]
[1642095616104,0.1218,3283.8,3283.3,0.00795793]
[1642095616303,17.72,3283.8,3283.3,0.00795793]
[1642095616501,17.72,3283.8,3283.1,0.00909478]
[1642095616502,0.237,3283.7,3283.1,0.00909478]
[1642095616705,0.05345002,3283.6,3283.1,0.00909478]
[1642095616902,1.52347,3283.4,3283.1,0.00909478]
[1642095617103,0.1218,3283.3,3283.2,5.07585578]
[1642095617502,0.1218,3283.3,3283.2,5.08438213]
[1642095618201,0.1218,3283.3,3283.2,1.48438213]
[1642095618403,0.83354,3283.3,3283.2,1.48438213]
[1642095619947,0.78354,3283.3,3283.2,1.48438213]
[1642095621747,0.73354,3283.3,3283.2,1.48438213]
[1642095621947,2.9511292,3283.3,3283.2,1.48438213]
[1642095623055,0.73354,3283.3,3283.2,1.48438213]
[1642095623301,2.9567856,3283.5,3283.2,1.52148362]
[1642095623501,2.9567856,3283.5,3283.2,4.52148362]
[1642095623701,2.9567856,3283.5,3283.2,4.48438213]
[1642095624303,2.9567856,3283.5,3283.2,5.62649643]
[1642095624607,2.9567856,3283.5,3283.3,0.59763057]
[1642095624803,1.48457236,3283.5,3283.3,0.59763057]
[1642095625004,1.48457236,3283.5,3283.4,7.10738951]
[1642095626004,1.48457236,3283.6,3283.4,7.10738951]
[1642095626404,1.48457236,3283.6,3283.5,9.37862108]
[1642095626704,1.48457236,3283.6,3283.5,9.25682108]
[1642095627152,1.48457236,3283.6,3283.5,0.00682108]
[1642095627352,1.60637236,3283.6,3283.5,0.00682108]
[1642095627555,1.60637236,3283.6,3283.2,3.7614]
[1642095627556,5.14795791,3283.5,3283.2,3.0]
[1642095627751,0.4858,3283.4,3283.3,0.00113685]
[1642095627950,0.05619704,3283.2,3282.2,5.9358]
[1642095628154,0.05619704,3283.2,3283.0,0.00170527]
[1642095628155,0.1218,3283.1,3283.0,0.00170527]
[1642095628852,0.76205,3282.8,3281.8,2.35462665]
[1642095629053,1.52416,3282.4,3282.0,0.00568423]
[1642095629252,1.52416,3282.4,3281.8,2.35462665]
[1642095629253,17.72,3282.2,3281.8,2.35462665]
[1642095629453,0.76213,3282.0,3281.8,3.8010561]
[1642095629653,0.76213,3282.0,3281.8,1.44642945]
[1642095630051,0.76213,3282.0,3281.8,1.36882074]
[1642095630251,0.88393,3282.0,3281.8,1.36882074]
[1642095631097,5.71679029,3282.0,3281.8,1.36882074]
[1642095631301,7.88602934,3282.0,3281.8,1.36882074]
[1642095631497,7.88602934,3282.0,3281.7,0.1218]
[1642095631703,0.08244637,3281.9,3281.7,0.1218]
[1642095631899,8.00122934,3282.0,3281.8,0.00113685]
[1642095632200,8.00122934,3282.0,3281.7,0.1218]
[1642095632201,22.90640689,3281.9,3281.7,0.1218]
[1642095632401,4.92972999,3281.8,3281.7,0.1218]
[1642095632603,5.29372999,3281.8,3281.2,1.32012441]
[1642095632803,0.76219,3281.5,3281.2,1.32012441]
[1642095633001,0.76219,3281.5,3281.3,0.00284212]
[1642095633625,2.24549847,3281.5,3281.3,0.00284212]
[1642095634301,2.60949847,3281.5,3281.3,0.00284212]
[1642095634557,2.74120017,3281.4,3281.3,0.00284212]
[1642095634748,2.61940017,3281.4,3281.3,0.00284212]
[1642095635148,2.61940017,3281.4,3281.3,4.95284212]
[1642095635550,4.10270864,3281.4,3281.3,4.95284212]
[1642095635750,4.10270864,3281.4,3281.3,0.00284212]
[1642095636550,4.10270864,3281.4,3280.9,0.00511581]
[1642095636850,0.76221,3281.0,3280.6,0.00682108]
[1642095637251,0.09154823,3280.9,3280.6,0.00682108]
[1642095637652,1.52441,3281.2,3280.7,1.32677081]
[1642095638152,1.52445,3281.1,3280.8,0.00568424]
[1642095639002,1.52441,3281.2,3280.8,0.00568424]
[1642095639205,0.4858,3281.5,3280.9,0.57131024]
[1642095639402,0.364,3281.5,3281.4,6.74832096]
[1642095639804,0.48750527,3282.3,3281.9,0.5094471]
[1642095640004,0.36570527,3282.3,3281.9,0.5094471]
[1642095640204,0.36570527,3282.3,3282.0,1.38763661]
[1642095640205,0.00227369,3282.2,3282.0,1.38763661]
[1642095640402,0.76194,3282.1,3282.0,1.38763661]
[1642095640604,0.88544527,3282.1,3282.0,1.38763661]
[1642095642560,1.79384527,3282.1,3282.0,1.38763661]
[1642095642960,4.41330317,3282.1,3282.0,1.38763661]
[1642095643161,4.41330317,3282.1,3281.5,3.88]
[1642095643162,0.9084,3281.8,3281.5,3.88]
[1642095643362,0.9084,3281.6,3281.4,0.00227369]
[1642095643562,0.97396452,3281.6,3281.5,1.28208286]
[1642095643769,0.9084,3281.6,3281.5,1.28208286]
[1642095643962,0.9084,3281.6,3281.5,1.28378813]
[1642095644163,0.9084,3281.6,3281.5,6.23378813]
[1642095644363,0.9084,3281.6,3281.5,6.69607969]
[1642095645064,1.67044,3281.6,3281.5,6.69607969]
[1642095646306,1.67044,3281.6,3281.5,1.96801256]
[1642095646698,1.67044,3281.6,3281.5,1.505721]
[1642095646900,1.67044,3281.6,3280.9,0.1218]
[1642095647099,0.05981522,3281.5,3280.5,5.7005]
[1642095647297,0.90555788,3281.0,3280.5,5.7005]
[1642095647501,0.90555788,3281.0,3280.6,0.00227369]
[1642095647700,0.97836972,3280.9,3280.6,0.00227369]
[1642095647898,0.90555788,3280.9,3280.6,0.00227369]
[1642095648296,0.90555788,3280.9,3280.4,0.00341054]
[1642095648697,0.90555788,3280.7,3280.4,0.00341054]
[1642095649956,0.07399689,3280.6,3280.4,0.00341054]
[1642095650155,1.66787788,3280.5,3280.4,0.00341054]
[1642095650957,1.66787788,3280.5,3280.4,2.80341054]
[1642095651461,0.90555788,3280.5,3280.4,2.80341054]
[1642095652056,0.90555788,3280.5,3280.4,6.80341054]
[1642095656117,0.90555788,3280.5,3280.4,2.80341054]
[1642095656519,0.90555788,3280.5,3280.4,0.00341054]
[1642095656722,1.73795788,3280.5,3280.4,0.00341054]
[1642095656916,0.09795791,3280.4,3280.1,0.1218]
[1642095657151,0.90555788,3280.2,3280.1,0.1218]
[1642095657352,0.90555788,3280.2,3279.6,3.8814]
[1642095657353,1.78991788,3280.2,3279.6,3.8814]
[1642095657551,0.1218,3280.1,3279.3,0.46466186]
[1642095657753,0.1218,3280.1,3279.5,0.00110474]
[1642095657754,0.90555788,3279.9,3279.5,0.00110474]
[1642095657952,1.1265535,3280.0,3279.5,0.00110474]
[1642095657953,0.90555788,3279.7,3279.5,0.00110474]
[1642095658152,1.98505788,3279.7,3279.5,0.00110474]
[1642095658352,1.98505788,3279.7,3279.4,0.00568423]
[1642095658353,2.74767788,3279.7,3279.4,0.00568423]
[1642095658554,2.86947788,3279.7,3279.4,0.00568423]
[1642095658753,0.0800675,3279.6,3279.2,0.00682108]
[1642095658953,0.1218,3279.5,3278.8,0.00909477]
[1642095659160,0.1218,3279.6,3278.8,0.00909477]
[1642095659358,1.66819788,3279.4,3278.8,0.00909477]
[1642095659554,0.1218,3279.3,3278.8,0.00909477]
[1642095659955,0.90555788,3279.1,3278.8,0.00909477]
[1642095660156,0.90555788,3279.1,3278.7,0.9893085]
[1642095660157,0.90555788,3278.9,3278.7,0.9893085]
[1642095660558,1.79022788,3278.8,3278.7,0.9893085]
[1642095661004,1.52574,3278.9,3278.8,10.3]
[1642095661005,6.788e-05,3278.9,3278.8,10.3]
[1642095661204,0.1219,3280.2,3279.5,0.45854938]
[1642095661403,0.15884002,3280.6,3279.5,0.45854938]